fUST/lending_fUST_20240731
["ID","MTS","AMOUNT","RATE_DAILY","PERIOD"]
[333746562,1722437450468,-500.0,0.00014794,2]
[333746563,1722437450478,-500.0,0.00014794,2]
[333746564,1722437450490,-500.0,0.00014794,2]
[333746565,1722437450500,-225.23797434,0.00014794,2]
[333746566,1722437450511,-500.0,0.00014794,2]
[333746567,1722437450521,-500.0,0.00014794,2]
[333746568,1722437450531,-500.0,0.00014794,2]
[333746569,1722437450542,-500.0,0.00014794,2]
[333746570,1722437450552,-500.0,0.00014794,2]
[333746571,1722437450562,-500.0,0.00014794,2]
[333746572,1722437450572,-500.0,0.00014794,2]
[333746573,1722437450583,-500.0,0.00014794,2]
[333746574,1722437450593,-500.0,0.00014794,2]
[333746575,1722437450603,-500.0,0.00014794,2]
[333746576,1722437450613,-500.0,0.00014794,2]
[333746577,1722437450624,-500.0,0.00014794,2]
[333746578,1722437450634,-500.0,0.00014794,2]
[333746579,1722437450645,-500.0,0.00014794,2]
[333746580,1722437450655,-500.0,0.00014794,2]
[333746581,1722437450666,-500.0,0.00014794,2]
[333746582,1722437450677,-500.0,0.00014794,2]
[333746583,1722437450688,-2461.09,0.00014794,2]
[333746584,1722437450698,-3518.83,0.00014794,2]
[333746585,1722437450709,-500.0,0.00014794,2]
[333746586,1722437450719,-500.0,0.00014794,2]
[333746587,1722437450729,-500.0,0.00014794,2]
[333746588,1722437450740,-607.44,0.00014794,2]
[333746589,1722437450750,-500.0,0.00014794,2]
[333746590,1722437450760,-500.0,0.00014794,2]
[333746591,1722437450771,-500.0,0.00014794,2]
[333746592,1722437450781,-500.0,0.00014794,2]
[333746593,1722437450792,-500.0,0.00014794,2]
[333746594,1722437450803,-500.0,0.00014794,2]
[333746595,1722437450814,-500.0,0.00014794,2]
[333746596,1722437450824,-714.51,0.00014794,2]
[333746597,1722437450834,-500.0,0.00014794,2]
[333746598,1722437450844,-500.0,0.00014794,2]
[333746599,1722437450854,-500.0,0.00014794,2]
[333746600,1722437450865,-500.0,0.00014794,2]
[333746601,1722437450875,-500.0,0.00014794,2]
[333746602,1722437450885,-500.0,0.00014794,2]
[333746603,1722437450896,-500.0,0.00014794,2]
[333746604,1722437450906,-500.0,0.00014794,2]
[333746605,1722437450916,-500.0,0.00014794,2]
[333746606,1722437450927,-500.0,0.00014794,2]
[333746607,1722437450937,-1323.01,0.00014794,2]
[333746608,1722437450948,-500.0,0.00014794,2]
[333746609,1722437450958,-500.0,0.00014794,2]
[333746610,1722437450969,-500.0,0.00014794,2]
[333746611,1722437450979,-500.0,0.00014794,2]
[333746612,1722437450990,-500.0,0.00014794,2]
[333746614,1722437451000,-500.0,0.00014794,2]
[333746616,1722437451010,-500.0,0.00014794,2]
[333746618,1722437451020,-500.0,0.00014794,2]
[333746619,1722437451031,-500.0,0.00014794,2]
[333746621,1722437451042,-1866.33,0.00014794,2]
[333746623,1722437451052,-500.0,0.00014794,2]
[333746624,1722437451062,-500.0,0.00014794,2]
[333746640,1722437451250,-500.0,0.00014794,2]
[333746643,1722437451265,-500.0,0.00014794,2]
[333746645,1722437451276,-500.0,0.00014794,2]
[333746647,1722437451286,-500.0,0.00014794,2]
[333746649,1722437451295,-500.0,0.00014794,2]
[333746651,1722437451306,-788.71,0.00014794,2]
[333746653,1722437451315,-500.0,0.00014794,2]
[333746655,1722437451324,-695.33,0.00014794,2]
[333746657,1722437451334,-500.0,0.00014794,2]
[333746659,1722437451343,-500.0,0.00014794,2]
[333746661,1722437451354,-2079.57,0.00014794,2]
[333746663,1722437451363,-500.0,0.00014794,2]
[333746665,1722437451372,-500.0,0.00014794,2]
[333746667,1722437451382,-500.0,0.00014794,2]
[333746669,1722437451392,-500.0,0.00014794,2]
[333746671,1722437451402,-500.0,0.00014794,2]
[333746673,1722437451412,-500.0,0.00014794,2]
[333746675,1722437451421,-500.0,0.00014794,2]
[333746677,1722437451431,-500.0,0.00014794,2]
[333746679,1722437451440,-500.0,0.00014794,2]
[333746681,1722437451449,-500.0,0.00014794,2]
[333746683,1722437451459,-500.0,0.00014794,2]
[333746685,1722437451469,-500.0,0.00014794,2]
[333746687,1722437451480,-500.0,0.00014794,2]
[333746689,1722437451490,-500.0,0.00014794,2]
[333746691,1722437451499,-500.0,0.00014794,2]
[333746693,1722437451509,-500.0,0.00014794,2]
[333746695,1722437451518,-500.0,0.00014794,2]
[333746697,1722437451527,-787.06,0.00014794,2]
[333746699,1722437451537,-500.0,0.00014794,2]
[333746701,1722437451546,-500.0,0.00014794,2]
[333746703,1722437451556,-500.0,0.00014794,2]
[333746705,1722437451565,-500.0,0.00014794,2]
[333746707,1722437451574,-500.0,0.00014794,2]
[333746709,1722437451584,-539.29688524,0.00014794,2]
[333746711,1722437451596,-3202.261,0.00014834,2]
[333746713,1722437451606,-500.0,0.00015068,2]
[333746715,1722437451616,-500.0,0.00015068,2]
[333746717,1722437451625,-590.92742735,0.00015068,2]
[333746719,1722437451635,-500.0,0.00015068,2]
[333746721,1722437451645,-500.0,0.00015068,2]
[333746723,1722437451655,-500.0,0.00015068,2]
[333746725,1722437451664,-500.0,0.00015068,2]
[333746727,1722437451674,-500.0,0.00015068,2]
[333746729,1722437451683,-500.0,0.00015068,2]
[333746731,1722437451693,-500.0,0.00015068,2]
[333746733,1722437451703,-500.0,0.00015068,2]
[333746735,1722437451712,-500.0,0.00015068,2]
[333746737,1722437451721,-500.0,0.00015068,2]
[333746739,1722437451731,-500.0,0.00015068,2]
[333746741,1722437451742,-500.0,0.00015068,2]
[333746743,1722437451751,-500.0,0.00015068,2]
[333746745,1722437451762,-500.0,0.00015068,2]
[333746748,1722437451773,-556.63645522,0.00015068,2]
[333746750,1722437451782,-500.0,0.00015068,2]
[333746752,1722437451792,-498.73499106,0.00015068,2]
[333746754,1722437451801,-2461.09,0.00015068,2]
[333746756,1722437451811,-3518.83,0.00015068,2]
[333746758,1722437451820,-500.0,0.00015068,2]
[333746760,1722437451830,-500.0,0.00015068,2]
[333746762,1722437451839,-500.0,0.00015068,2]
[333746764,1722437451850,-607.44,0.00015068,2]
[333746766,1722437451861,-253.89471796,0.00015068,2]
[333746768,1722437451870,-551.41329156,0.00015068,2]
[333746770,1722437451880,-500.0,0.00015068,2]
[333746772,1722437451890,-500.0,0.00015068,2]
[333746774,1722437451900,-500.0,0.00015068,2]
[333746776,1722437451910,-500.0,0.00015068,2]
[333746778,1722437451919,-500.0,0.00015068,2]
[333746780,1722437451928,-714.51,0.00015068,2]
[333746782,1722437451938,-500.0,0.00015068,2]
[333746784,1722437451948,-500.0,0.00015068,2]
[333746786,1722437451957,-500.0,0.00015068,2]
[333746788,1722437451968,-432.48640852,0.00015068,2]
[333746790,1722437451978,-500.0,0.00015068,2]
[333746792,1722437451987,-500.0,0.00015068,2]
[333746794,1722437451998,-637.94560378,0.00015068,2]
[333746796,1722437452008,-500.0,0.00015068,2]
[333746798,1722437452018,-500.0,0.00015068,2]
[333746801,1722437452028,-500.0,0.00015068,2]
[333746803,1722437452039,-1323.01,0.00015068,2]
[333746805,1722437452049,-500.0,0.00015068,2]
[333746807,1722437452059,-500.0,0.00015068,2]
[333746808,1722437452069,-536.89606907,0.00015068,2]
[333746809,1722437452078,-500.0,0.00015068,2]
[333746810,1722437452088,-500.0,0.00015068,2]
[333746811,1722437452098,-500.0,0.00015068,2]
[333746812,1722437452107,-569.81466547,0.00015068,2]
[333746813,1722437452117,-287.88703539,0.00015068,2]
[333746814,1722437452126,-500.0,0.00015068,2]
[333746815,1722437452136,-1866.33,0.00015068,2]
[333746816,1722437452147,-609.67890147,0.00015068,2]
[333746817,1722437452158,-500.0,0.00015068,2]
[333746818,1722437452172,-500.0,0.00015068,2]
[333746819,1722437452183,-174.15390358,0.00015068,2]
[333746820,1722437452192,-470.01736443,0.00015068,2]
[333746821,1722437452203,-500.0,0.00015068,2]
[333746822,1722437452212,-532.78944973,0.00015068,2]
[333746823,1722437452221,-788.71,0.00015068,2]
[333746824,1722437452231,-500.0,0.00015068,2]
[333746825,1722437452243,-695.33,0.00015068,2]
[333746826,1722437452255,-500.0,0.00015068,2]
[333746827,1722437452264,-500.0,0.00015068,2]
[333746828,1722437452275,-2079.57,0.00015068,2]
[333746829,1722437452284,-500.0,0.00015068,2]
[333746830,1722437452294,-500.0,0.00015068,2]
[333746831,1722437452303,-500.0,0.00015068,2]
[333746832,1722437452312,-500.0,0.00015068,2]
[333746833,1722437452321,-500.0,0.00015068,2]
[333746834,1722437452331,-500.0,0.00015068,2]
[333746835,1722437452340,-500.0,0.00015068,2]
[333746836,1722437452349,-313.37059344,0.00015068,2]
[333746837,1722437452358,-500.0,0.00015068,2]
[333746838,1722437452368,-500.0,0.00015068,2]
[333746839,1722437452377,-500.0,0.00015068,2]
[333746840,1722437452386,-500.0,0.00015068,2]
[333746841,1722437452397,-500.0,0.00015068,2]
[333746842,1722437452407,-500.0,0.00015068,2]
[333746843,1722437452416,-500.0,0.00015068,2]
[333746844,1722437452426,-500.0,0.00015068,2]
[333746845,1722437452436,-500.0,0.00015068,2]
[333746846,1722437452446,-787.06,0.00015068,2]
[333746847,1722437452456,-500.0,0.00015068,2]
[333746848,1722437452466,-500.0,0.00015068,2]
[333746849,1722437452476,-500.0,0.00015068,2]
[333746850,1722437452486,-500.0,0.00015068,2]
[333746851,1722437452495,-500.0,0.00015068,2]
[333746852,1722437452505,-592.5071021,0.00015242,2]
[333746853,1722437452514,-474.27821078,0.00015342,2]
[333746854,1722437452524,-428.86728438,0.00015342,2]
[333746855,1722437452533,-500.0,0.00015342,2]
[333746856,1722437452543,-500.0,0.00015342,2]
[333746857,1722437452552,-500.0,0.00015342,2]
[333746858,1722437452562,-500.0,0.00015342,2]
[333746859,1722437452571,-500.0,0.00015342,2]
[333746860,1722437452581,-500.0,0.00015342,2]
[333746861,1722437452591,-500.0,0.00015342,2]
[333746862,1722437452601,-500.0,0.00015342,2]
[333746863,1722437452611,-500.0,0.00015342,2]
[333746864,1722437452620,-500.0,0.00015342,2]
[333746865,1722437452630,-500.0,0.00015342,2]
[333746866,1722437452640,-500.0,0.00015342,2]
[333746867,1722437452654,-500.0,0.00015342,2]
[333746868,1722437452664,-500.0,0.00015342,2]
[333746869,1722437452673,-500.0,0.00015342,2]
[333746870,1722437452682,-2461.09,0.00015342,2]
[333746871,1722437452692,-3518.83,0.00015342,2]
[333746872,1722437452705,-500.0,0.00015342,2]
[333746873,1722437452714,-500.0,0.00015342,2]
[333746874,1722437452723,-500.0,0.00015342,2]
[333746875,1722437452732,-607.44,0.00015342,2]
[333746876,1722437452741,-523.93900551,0.00015342,2]
[333746877,1722437452749,-500.0,0.00015342,2]
[333746878,1722437452758,-500.0,0.00015342,2]
[333746879,1722437452768,-500.0,0.00015342,2]
[333746880,1722437452777,-500.0,0.00015342,2]
[333746881,1722437452787,-714.51,0.00015342,2]
[333746882,1722437452796,-304.32248683,0.00015342,2]
[333746883,1722437452805,-165.95900851,0.00015342,2]
[333746884,1722437452815,-500.0,0.00015342,2]
[333746885,1722437452824,-543.55351861,0.00015342,2]
[333746886,1722437452833,-500.0,0.00015342,2]
[333746887,1722437452843,-500.0,0.00015342,2]
[333746888,1722437452852,-500.0,0.00015342,2]
[333746889,1722437452862,-500.0,0.00015342,2]
[333746890,1722437452871,-1323.01,0.00015342,2]
[333746891,1722437452880,-500.0,0.00015342,2]
[333746892,1722437452890,-500.0,0.00015342,2]
[333746893,1722437452902,-500.0,0.00015342,2]
[333746894,1722437452911,-500.0,0.00015342,2]
[333746895,1722437452921,-500.0,0.00015342,2]
[333746896,1722437452931,-500.0,0.00015342,2]
[333746897,1722437452940,-1866.33,0.00015342,2]
[333746898,1722437452950,-500.0,0.00015342,2]
[333746899,1722437452959,-500.0,0.00015342,2]
[333746900,1722437452970,-500.0,0.00015342,2]
[333746901,1722437452979,-788.71,0.00015342,2]
[333746902,1722437452988,-500.0,0.00015342,2]
[333746903,1722437452998,-695.33,0.00015342,2]
[333746904,1722437453008,-500.0,0.00015342,2]
[333746905,1722437453017,-500.0,0.00015342,2]
[333746906,1722437453026,-2079.57,0.00015342,2]
[333746907,1722437453035,-500.0,0.00015342,2]
[333746908,1722437453045,-500.0,0.00015342,2]
[333746909,1722437453054,-462.13320328,0.00015342,2]
[333746910,1722437453063,-500.0,0.00015342,2]
[333746911,1722437453073,-196.60757268,0.00015342,2]
[333746912,1722437453082,-317.96553226,0.00015342,2]
[333746913,1722437453091,-500.0,0.00015342,2]
[333746914,1722437453101,-500.0,0.00015342,2]
[333746915,1722437453111,-500.0,0.00015342,2]
[333746916,1722437453120,-500.0,0.00015342,2]
[333746917,1722437453131,-500.0,0.00015342,2]
[333746918,1722437453140,-500.0,0.00015342,2]
[333746919,1722437453152,-500.0,0.00015342,2]
[333746920,1722437453164,-500.0,0.00015342,2]
[333746921,1722437453175,-500.0,0.00015342,2]
[333746922,1722437453185,-367.68887717,0.00015342,2]
[333746923,1722437453195,-787.06,0.00015342,2]
[333746924,1722437453204,-500.0,0.00015342,2]
[333746925,1722437453215,-500.0,0.00015342,2]
[333746926,1722437453224,-500.0,0.00015342,2]
[333746927,1722437453234,-352.15479511,0.00015342,2]
[333746928,1722437453246,-500.0,0.00015342,2]
[333746929,1722437453258,-500.0,0.00015616,2]
[333746930,1722437453267,-500.0,0.00015616,2]
[333746931,1722437453277,-208.95495296,0.00015616,2]
[333746932,1722437503521,890.04294861,9.999e-05,2]
[333746933,1722437515849,250.0,9.999e-05,2]
[333746934,1722437601524,200.86980295,9.999e-05,2]
[333746935,1722437626451,154.78764605,9.999e-05,2]
[333746936,1722437793530,244.89057225,9.999e-05,2]
[333746938,1722438410173,154.69833824,9.999e-05,2]
[333746939,1722438428507,154.69833824,9.999e-05,2]
[333746940,1722438444417,613.81317929,9.999e-05,2]
[333746941,1722438450867,805.65848734,9.999e-05,2]
[333746942,1722438456154,16418.81325197,9.999e-05,2]
[333746943,1722438476643,1210.36716046,9.999e-05,2]
[333746944,1722438511490,216.22864078,9.999e-05,2]
[333746953,1722438581720,152.0764,9.999e-05,2]
[333746954,1722438581745,2.76096516,9.999e-05,2]
[333746958,1722438598857,813.25800068,9.999e-05,2]
[333747167,1722438638276,-166.666666,0.00010959,2]
[333747168,1722438638286,-166.666666,0.00011236,2]
[333747169,1722438638297,-166.666666,0.00011513,2]
[333747170,1722438638307,-166.666666,0.0001179,2]
[333747171,1722438638317,-250.0,0.00011808,2]
[333747172,1722438638327,-250.0,0.0001184,2]
[333747173,1722438638338,-250.0,0.00011873,2]
[333747174,1722438638348,-300.0,0.00011875,2]
[333747175,1722438638358,-18855.49351831,0.00011876,2]
[333747285,1722438640309,-6044.50648169,0.00011876,2]
[333747287,1722438640320,-250.0,0.00011905,2]
[333747289,1722438640329,-250.0,0.00011938,2]
[333747291,1722438640340,-250.0,0.0001197,2]
[333747293,1722438640350,-250.0,0.00012002,2]
[333747295,1722438640360,-250.0,0.00012035,2]
[333747297,1722438640372,-250.0,0.00012067,2]
[333747299,1722438640381,-166.666666,0.00012068,2]
[333747301,1722438640390,-250.0,0.00012099,2]
[333747303,1722438640399,-250.0,0.00012132,2]
[333747305,1722438640409,-250.0,0.00012164,2]
[333747307,1722438640419,-250.0,0.00012197,2]
[333747309,1722438640429,-250.0,0.00012229,2]
[333747311,1722438640439,-250.0,0.00012261,2]
[333747313,1722438640449,-250.0,0.00012294,2]
[333747315,1722438640459,-250.0,0.00012326,2]
[333747317,1722438640468,-166.666666,0.00012345,2]
[333747319,1722438640478,-250.0,0.00012359,2]
[333747321,1722438640487,-250.0,0.00012391,2]
[333747323,1722438640497,-250.0,0.00012423,2]
[333747325,1722438640506,-189.4437,0.00012986,2]
[333747327,1722438640516,-420.0,0.00013062,2]
[333747329,1722438640529,-1959.9538232,0.00013598,2]
[333747331,1722438640539,-231.60787154,0.00013698,2]
[333747333,1722438640549,-500.0,0.00013698,2]
[333747334,1722438640559,-523.63834847,0.00013698,2]
[333747335,1722438640568,-500.0,0.00013698,2]
[333747336,1722438640578,-500.0,0.00013698,2]
[333747337,1722438640588,-500.0,0.00013698,2]
[333747338,1722438640598,-500.0,0.00013698,2]
[333747339,1722438640608,-500.0,0.00013698,2]
[333747340,1722438640619,-492.49485989,0.00013698,2]
[333747341,1722438640631,-500.0,0.00013698,2]
[333747342,1722438640640,-500.0,0.00013698,2]
[333747343,1722438640650,-500.0,0.00013698,2]
[333747344,1722438640660,-500.0,0.00013698,2]
[333747345,1722438640670,-500.0,0.00013698,2]
[333747346,1722438640680,-500.0,0.00013698,2]
[333747347,1722438640690,-500.0,0.00013698,2]
[333747348,1722438640700,-937.13,0.00013698,2]
[333747349,1722438640710,-500.0,0.00013698,2]
[333747350,1722438640720,-500.0,0.00013698,2]
[333747351,1722438640729,-500.0,0.00013698,2]
[333747352,1722438640739,-500.0,0.00013698,2]
[333747353,1722438640749,-500.0,0.00013698,2]
[333747354,1722438640758,-500.0,0.00013698,2]
[333747355,1722438640779,-500.0,0.00013698,2]
[333747356,1722438640790,-500.0,0.00013698,2]
[333747357,1722438640801,-187.66710027,0.00013698,2]
[333747358,1722438640811,-500.0,0.00013698,2]
[333747359,1722438640821,-500.0,0.00013698,2]
[333747360,1722438640831,-500.0,0.00013698,2]
[333747361,1722438640842,-500.0,0.00013698,2]
[333747362,1722438640854,-558.66,0.00013698,2]
[333747363,1722438640864,-500.0,0.00013698,2]
[333747364,1722438640875,-500.0,0.00013698,2]
[333747365,1722438640885,-500.0,0.00013698,2]
[333747366,1722438640896,-500.0,0.00013698,2]
[333747367,1722438640906,-500.0,0.00013698,2]
[333747368,1722438640916,-500.0,0.00013698,2]
[333747369,1722438640926,-519.52671482,0.00013698,2]
[333747370,1722438640936,-500.0,0.00013698,2]
[333747371,1722438640946,-500.0,0.00013698,2]
[333747372,1722438640957,-500.0,0.00013698,2]
[333747373,1722438640967,-500.0,0.00013698,2]
[333747374,1722438640977,-500.0,0.00013698,2]
[333747375,1722438640987,-1473.03,0.00013698,2]
[333747376,1722438640998,-500.0,0.00013698,2]
[333747377,1722438641008,-408.31613764,0.00013698,2]
[333747378,1722438641018,-1743.27,0.00013698,2]
[333747379,1722438641028,-500.0,0.00013698,2]
[333747380,1722438641039,-557.5,0.00013698,2]
[333747381,1722438641048,-500.0,0.00013698,2]
[333747382,1722438641058,-500.0,0.00013698,2]
[333747383,1722438641068,-500.0,0.00013698,2]
[333747384,1722438641078,-2492.5,0.00013698,2]
[333747385,1722438641089,-500.0,0.00013698,2]
[333747386,1722438641098,-500.0,0.00013698,2]
[333747387,1722438641109,-500.0,0.00013698,2]
[333747388,1722438641119,-420.37746721,0.00013698,2]
[333747389,1722438641130,-255.2744695,0.00013699,2]
[333747390,1722438641140,-1774.4532942,0.00013699,2]
[333747391,1722438641152,-291.20043196,0.000137,2]
[333747392,1722438641162,-5000.0,0.000139,2]
[333747393,1722438641171,-2295.40422474,0.00013962,2]
[333747394,1722438641181,-500.0,0.00013971,2]
[333747395,1722438641191,-500.0,0.00013971,2]
[333747396,1722438641201,-506.11,0.00013971,2]
[333747397,1722438641210,-500.0,0.00013971,2]
[333747398,1722438641220,-500.0,0.00013972,2]
[333747399,1722438641231,-500.0,0.00013972,2]
[333747400,1722438641240,-500.0,0.00013972,2]
[333747401,1722438641250,-500.0,0.00013972,2]
[333747402,1722438641260,-241.70589182,0.00013972,2]
[333747403,1722438641270,-500.0,0.00013972,2]
[333747404,1722438641280,-500.0,0.00013972,2]
[333747405,1722438641290,-500.0,0.00013972,2]
[333747406,1722438641300,-500.0,0.00013972,2]
[333747407,1722438641310,-500.0,0.00013972,2]
[333747408,1722438641320,-500.0,0.00013972,2]
[333747409,1722438641330,-500.0,0.00013972,2]
[333747410,1722438641340,-500.0,0.00013972,2]
[333747411,1722438641350,-937.13,0.00013972,2]
[333747412,1722438641359,-500.0,0.00013972,2]
[333747413,1722438641369,-500.0,0.00013972,2]
[333747414,1722438641380,-500.0,0.00013972,2]
[333747415,1722438641389,-500.0,0.00013972,2]
[333747416,1722438641400,-500.0,0.00013972,2]
[333747417,1722438641410,-500.0,0.00013972,2]
[333747418,1722438641420,-500.0,0.00013972,2]
[333747419,1722438641429,-500.0,0.00013972,2]
[333747420,1722438641440,-240.21381343,0.00013972,2]
[333747422,1722438641450,-500.0,0.00013972,2]
[333747424,1722438641460,-500.0,0.00013972,2]
[333747426,1722438641470,-500.0,0.00013972,2]
[333747428,1722438641480,-558.66,0.00013972,2]
[333747430,1722438641490,-500.0,0.00013972,2]
[333747432,1722438641500,-500.0,0.00013972,2]
[333747434,1722438641510,-244.14235548,0.00013972,2]
[333747436,1722438641519,-500.0,0.00013972,2]
[333747438,1722438641533,-500.0,0.00013972,2]
[333747439,1722438641543,-500.0,0.00013972,2]
[333747440,1722438641553,-500.0,0.00013972,2]
[333747442,1722438641562,-500.0,0.00013972,2]
[333747444,1722438641573,-500.0,0.00013972,2]
[333747446,1722438641583,-500.0,0.00013972,2]
[333747448,1722438641593,-500.0,0.00013972,2]
[333747450,1722438641604,-1473.03,0.00013972,2]
[333747452,1722438641617,-500.0,0.00013972,2]
[333747454,1722438641629,-1743.27,0.00013972,2]
[333747456,1722438641640,-500.0,0.00013972,2]
[333747458,1722438641649,-557.5,0.00013972,2]
[333747460,1722438641660,-500.0,0.00013972,2]
[333747461,1722438641670,-500.0,0.00013972,2]
[333747462,1722438641680,-2492.5,0.00013972,2]
[333747463,1722438641689,-500.0,0.00013972,2]
[333747465,1722438641699,-500.0,0.00013972,2]
[333747467,1722438641709,-500.0,0.00013972,2]
[333747468,1722438641719,-500.0,0.00013972,2]
[333747470,1722438641728,-1000.0,0.00014,14]
[333747472,1722438641738,-1959.95382319,0.00014009,2]
[333747474,1722438641747,-500.0,0.00014245,2]
[333747476,1722438641757,-1321.98,0.00014245,2]
[333747477,1722438641766,-500.0,0.00014245,2]
[333747479,1722438641776,-500.0,0.00014245,2]
[333747481,1722438641786,-506.11,0.00014245,2]
[333747483,1722438641797,-500.0,0.00014245,2]
[333747485,1722438641807,-223.7506946,0.00014246,2]
[333747487,1722438641818,-380.16289287,0.00014246,2]
[333747488,1722438641827,-500.0,0.00014246,2]
[333747490,1722438641837,-500.0,0.00014246,2]
[333747491,1722438641848,-500.0,0.00014246,2]
[333747492,1722438641858,-500.0,0.00014246,2]
[333747493,1722438641867,-208.81225694,0.00014246,2]
[333747494,1722438641879,-500.0,0.00014246,2]
[333747495,1722438641889,-500.0,0.00014246,2]
[333747496,1722438641898,-500.0,0.00014246,2]
[333747497,1722438641908,-500.0,0.00014246,2]
[333747498,1722438641918,-500.0,0.00014246,2]
[333747499,1722438641928,-937.13,0.00014246,2]
[333747500,1722438641938,-500.0,0.00014246,2]
[333747501,1722438641948,-500.0,0.00014246,2]
[333747502,1722438641957,-500.0,0.00014246,2]
[333747503,1722438641967,-500.0,0.00014246,2]
[333747504,1722438641976,-500.0,0.00014246,2]
[333747505,1722438641987,-500.0,0.00014246,2]
[333747506,1722438641996,-500.0,0.00014246,2]
[333747507,1722438642006,-307.54866388,0.00014246,2]
[333747508,1722438642015,-500.0,0.00014246,2]
[333747509,1722438642025,-250.14100791,0.00014246,2]
[333747510,1722438642036,-500.0,0.00014246,2]
[333747511,1722438642045,-558.66,0.00014246,2]
[333747512,1722438642055,-500.0,0.00014246,2]
[333747513,1722438642065,-500.0,0.00014246,2]
[333747514,1722438642074,-500.0,0.00014246,2]
[333747515,1722438642085,-500.0,0.00014246,2]
[333747516,1722438642095,-500.0,0.00014246,2]
[333747517,1722438642105,-500.0,0.00014246,2]
[333747518,1722438642115,-500.0,0.00014246,2]
[333747519,1722438642126,-500.0,0.00014246,2]
[333747520,1722438642136,-500.0,0.00014246,2]
[333747521,1722438642146,-500.0,0.00014246,2]
[333747522,1722438642156,-1473.03,0.00014246,2]
[333747523,1722438642166,-500.0,0.00014246,2]
[333747524,1722438642176,-1743.27,0.00014246,2]
[333747525,1722438642185,-500.0,0.00014246,2]
[333747526,1722438642195,-557.5,0.00014246,2]
[333747527,1722438642205,-206.22343303,0.00014246,2]
[333747528,1722438642215,-500.0,0.00014246,2]
[333747529,1722438642225,-2492.5,0.00014246,2]
[333747530,1722438642235,-500.0,0.00014246,2]
[333747531,1722438642244,-500.0,0.00014246,2]
[333747532,1722438642255,-500.0,0.00014246,2]
[333747533,1722438642265,-500.0,0.00014246,2]
[333747534,1722438642275,-750.0,0.00014247,2]
[333747535,1722438642284,-159.002891,0.00014247,2]
[333747536,1722438642294,-1959.95382319,0.0001442,2]
[333747537,1722438642304,-2295.40422474,0.00014509,2]
[333747538,1722438642314,-500.0,0.00014519,2]
[333747539,1722438642324,-1321.98,0.00014519,2]
[333747540,1722438642333,-333.33597083,0.00014519,2]
[333747541,1722438642350,-166.66402917,0.00014519,2]
[333747542,1722438642360,-500.0,0.00014519,2]
[333747543,1722438642370,-506.11,0.00014519,2]
[333747544,1722438642381,-237.1600781,0.00014519,2]
[333747577,1722438643433,-500.0,0.00013698,2]
[333747578,1722438643443,-63.99999999,0.00013698,2]
[333747579,1722438643593,-358.28247966,0.00013698,2]
[333747580,1722438643605,-77.71752035,0.00013698,2]
[333747581,1722438643615,-500.0,0.00013972,2]
[333747582,1722438643625,-500.0,0.00014246,2]